bitfinex-derivatives/quotes_BTCF0:USTF0_20251125
["timestamp","ask_amount","ask_price","bid_price","bid_amount"]
[1764086310378,0.95385974,87002.0,87001.0,0.09935]
[1764086310685,0.64235924,87002.0,87001.0,0.20473]
[1764086310881,0.54235924,87002.0,87001.0,0.20473]
[1764086312084,0.03009924,87002.0,87001.0,0.24563204]
[1764086312286,9.924e-05,87002.0,87001.0,0.24563204]
[1764086313288,9.924e-05,87002.0,87001.0,0.20473]
[1764086313677,0.00017235,87010.0,87009.0,0.2162295]
[1764086314180,0.00017235,87010.0,87009.0,0.3979895]
[1764086314380,0.00017235,87010.0,87009.0,0.43886055]
[1764086314582,0.00017235,87010.0,87009.0,0.7587895]
[1764086314883,0.3608,87022.0,87021.0,0.2162279]
[1764086315283,0.4322,87027.0,87026.0,0.20473]
[1764086315587,0.8836971,87027.0,87026.0,0.20473]
[1764086316084,0.9436,87027.0,87026.0,0.20473]
[1764086316285,0.1542979,87021.0,87020.0,0.26861]
[1764086316491,0.9842979,87021.0,87020.0,0.24564]
[1764086316886,0.9842979,87021.0,87020.0,0.18176]
[1764086317085,0.7742979,87021.0,87020.0,0.34499]
[1764086317288,0.7742979,87021.0,87020.0,0.45037]
[1764086317478,0.41,87021.0,87020.0,0.45037]
[1764086317684,0.4322,87027.0,87026.0,0.2162273]
[1764086317888,1.0622,87027.0,87026.0,0.2162273]
[1764086318095,0.8622,87027.0,87026.0,0.2162273]
[1764086318289,0.8736971,87027.0,87026.0,0.20473]
[1764086318592,0.1542979,87021.0,87020.0,0.45037]
[1764086319092,0.5642979,87021.0,87020.0,0.45037]
[1764086319592,0.5642979,87021.0,87020.0,0.26861]
[1764086319796,0.1428,87019.0,87018.0,0.18193235]
[1764086319984,0.5128,87019.0,87018.0,0.18193235]
[1764086320180,0.5128,87019.0,87018.0,0.00017235]
[1764086320386,1.2536,87019.0,87018.0,0.00017235]
[1764086321786,0.0114999,87006.0,87005.0,0.19675]
[1764086321990,0.0599396,87009.0,87008.0,0.0974]
[1764086322190,0.5383796,87009.0,87008.0,0.19899]
[1764086322388,0.1083801,87005.0,87004.0,0.04087102]
[1764086322594,0.09675247,87004.0,87003.0,0.04087102]
[1764086322790,0.46675247,87004.0,87003.0,0.1130903]
[1764086323289,0.45742,87010.0,87009.0,0.2104895]
[1764086323489,0.79911,87010.0,87009.0,0.2104895]
[1764086323695,0.79911,87010.0,87009.0,0.19899]
[1764086325188,0.84742,87010.0,87009.0,0.19899]
[1764086326899,0.7508,87010.0,87009.0,0.19899]
[1764086327100,0.7308,87010.0,87009.0,0.19899]
[1764086327604,0.3708,87010.0,87009.0,0.19899]
[1764086327787,0.01,87010.0,87009.0,0.19899]
[1764086327991,0.00017235,87012.0,87008.0,0.04087102]
[1764086327992,0.00017235,87012.0,87011.0,0.19899]
[1764086328293,0.42017235,87012.0,87011.0,0.23986102]
[1764086328493,0.3608,87019.0,87018.0,0.2104883]
[1764086328894,0.04831,87027.0,87026.0,0.2104873]
[1764086329195,0.1081179,87021.0,87020.0,0.15935]
[1764086329397,0.5281179,87021.0,87020.0,0.20023751]
[1764086329901,0.5281179,87021.0,87020.0,0.29763751]
[1764086330297,0.5281179,87021.0,87020.0,0.25675]
[1764086330497,0.09662,87021.0,87020.0,0.25675]
[1764086330698,0.1081172,87027.0,87026.0,0.19899]
[1764086330898,0.6181172,87027.0,87026.0,0.19899]
[1764086331403,0.52662,87027.0,87026.0,0.19899]
[1764086331703,0.5381171,87027.0,87026.0,0.19899]
[1764086332402,0.5381171,87027.0,87026.0,0.2104873]
[1764086333496,0.5381171,87027.0,87026.0,0.19899]
[1764086333702,0.1081175,87024.0,87023.0,0.06118262]
[1764086333895,0.1081175,87024.0,87020.0,0.05776]
[1764086333896,0.1081178,87022.0,87021.0,0.26017262]
[1764086334096,0.5081178,87022.0,87021.0,0.26017262]
[1764086334697,0.5081178,87022.0,87021.0,0.19899]
[1764086335308,0.49662,87022.0,87021.0,0.19899]
[1764086338105,0.4,87022.0,87021.0,0.19899]
[1764086338907,0.00017235,87029.0,87028.0,0.18812]
[1764086339203,0.00017235,87029.0,87028.0,0.199617]
[1764086339409,0.00017235,87029.0,87028.0,0.560417]
[1764086340499,0.00017235,87029.0,87028.0,0.742177]
[1764086341302,0.25027171,87042.0,87041.0,0.17437]
[1764086341497,0.64021801,87042.0,87041.0,0.21536423]
[1764086341701,0.82709321,87042.0,87041.0,0.17437]
[1764086341907,0.89171321,87042.0,87041.0,0.17437]
[1764086342211,0.62171321,87042.0,87041.0,0.17437]
[1764086342403,0.62271321,87042.0,87041.0,0.17437]
[1764086342598,0.001,87042.0,87041.0,0.17437]
[1764086342819,0.33431,87042.0,87041.0,0.17437]
[1764086343010,0.36662,87042.0,87041.0,0.17437]
[1764086343312,0.0761153,87041.0,87040.0,0.0114954]
[1764086343608,0.4961153,87041.0,87040.0,0.17437]
[1764086343811,0.4961153,87041.0,87040.0,0.08784]
[1764086344514,0.45331,87041.0,87040.0,0.17437]
[1764086344811,0.45431,87041.0,87040.0,0.17437]
[1764086345008,0.48662,87041.0,87040.0,0.17437]
[1764086345406,0.0761158,87037.0,87036.0,0.06149134]
[1764086345601,0.0761158,87037.0,87034.0,0.06149134]
[1764086345602,0.0761161,87035.0,87034.0,0.06149134]
[1764086345807,0.06462,87034.0,87033.0,0.0411206]
[1764086346005,0.88462,87034.0,87033.0,0.0411206]
[1764086346510,0.46462,87034.0,87033.0,0.1289606]
[1764086346710,0.46462,87034.0,87033.0,0.08801235]
[1764086346914,0.46462,87034.0,87033.0,0.17454235]
[1764086347420,0.46462,87034.0,87033.0,0.00017235]
[1764086347714,0.89462,87034.0,87033.0,0.00017235]
[1764086348217,0.46462,87034.0,87033.0,0.00017235]
[1764086348518,0.81462,87034.0,87033.0,0.04108346]
[1764086348714,0.81462,87034.0,87033.0,0.00017235]
[1764086348906,0.75,87034.0,87014.0,0.06149134]
[1764086349105,0.0114983,87018.0,87016.0,0.05077]
[1764086349414,0.8414983,87018.0,87016.0,0.22514]
[1764086349615,0.8414983,87018.0,87013.0,0.06149134]
[1764086349616,0.0114989,87014.0,87013.0,0.06149134]
[1764086349816,0.0114993,87011.0,87009.0,0.06149134]
[1764086350008,0.8414993,87011.0,87009.0,0.08784]
[1764086350208,0.0114998,87007.0,87005.0,0.06166369]
[1764086350409,0.8714998,87007.0,87005.0,0.00017235]
[1764086350612,0.5014998,87007.0,87005.0,0.17454235]
[1764086351006,0.5114998,87007.0,87005.0,0.17454235]
[1764086351209,0.7614998,87007.0,87005.0,0.17454235]
[1764086351413,0.75,87007.0,87005.0,0.17454235]
[1764086351712,0.51,87007.0,87005.0,0.17454235]
[1764086352217,0.00808,87006.0,87005.0,0.00017235]
[1764086352409,0.82808,87006.0,87005.0,0.00017235]
[1764086352607,0.60808,87006.0,87005.0,0.08908235]
[1764086353006,0.78808,87006.0,87005.0,0.08908235]
[1764086353311,0.78808,87006.0,87005.0,0.00017235]
[1764086354012,0.78808,87006.0,86992.0,0.05077]
[1764086354013,0.0195809,86999.0,86998.0,0.06149134]
[1764086354213,0.0195814,86995.0,86994.0,0.06149134]
[1764086354413,0.0115016,86993.0,86992.0,0.11226134]
[1764086354720,0.7795816,86993.0,86992.0,0.13968]
[1764086354909,0.7795816,86993.0,86992.0,0.22521]
[1764086355710,0.7795816,86993.0,86992.0,0.001]
[1764086356413,0.00808,86985.0,86984.0,0.05094235]
[1764086356620,0.80808,86985.0,86984.0,0.13985235]
[1764086356920,1.16888,86985.0,86984.0,0.00017235]
[1764086358118,1.16888,86985.0,86984.0,0.00117235]
[1764086358318,1.16888,86985.0,86984.0,0.00217235]
[1764086358512,1.16888,86985.0,86984.0,0.17661235]
[1764086359010,1.16888,86985.0,86984.0,0.00217235]
[1764086360407,1.13888,86985.0,86984.0,0.17661235]
[1764086360609,0.37808,86985.0,86984.0,0.17661235]
[1764086361115,0.78808,86985.0,86984.0,0.09108235]
[1764086361412,0.56808,86985.0,86984.0,0.17661235]
[1764086361812,0.75808,86985.0,86984.0,0.22643235]
[1764086362219,0.48808,86985.0,86984.0,0.22643235]
[1764086362419,0.75808,86985.0,86984.0,0.14090235]
[1764086362718,0.47808,86985.0,86984.0,0.22643235]
[1764086363121,0.44808,86985.0,86984.0,0.22643235]
[1764086363619,0.44,86985.0,86984.0,0.23793515]
[1764086364305,0.3608,86994.0,86993.0,0.1004116]
[1764086364511,0.80888,86994.0,86993.0,0.17444]
[1764086365418,0.7408,86994.0,86993.0,0.17544]
[1764086365818,0.38,86994.0,86993.0,0.17544]
[1764086366023,0.00017235,87001.0,87000.0,0.2357607]
[1764086366412,0.43017235,87001.0,87000.0,0.2357607]
[1764086367021,0.00017235,87001.0,87000.0,0.2357607]
[1764086367324,0.21017235,87001.0,87000.0,0.2357607]
[1764086367618,0.3608,87013.0,87012.0,0.1859391]
[1764086367807,0.6508,87013.0,87012.0,0.1859391]
[1764086368007,0.6508,87013.0,87012.0,0.17444]
[1764086368718,0.29,87013.0,87012.0,0.17444]
[1764086369018,0.0114982,87020.0,87019.0,0.17444]
[1764086369221,1.0686482,87020.0,87019.0,0.17444]
[1764086369416,0.1886494,87011.0,87010.0,0.17444]
[1764086369608,0.62715,87011.0,87010.0,0.17444]
[1764086371828,0.1886501,87005.0,87004.0,0.35641235]
[1764086372028,0.61715,87005.0,87004.0,0.35641235]
[1764086372220,0.6286501,87005.0,87004.0,0.35641235]
[1764086373627,0.6286501,87005.0,87004.0,0.18611255]
[1764086374222,0.6286501,87005.0,87004.0,0.17461235]
[1764086374430,0.6286501,87005.0,87004.0,0.08908235]
[1764086374618,0.6286501,87005.0,87004.0,0.17461235]
[1764086374818,1.0186501,87005.0,87004.0,0.00017235]
[1764086375528,0.7786501,87005.0,87004.0,0.00017235]
[1764086375820,1.0186501,87005.0,87004.0,0.00017235]
[1764086376422,0.7386501,87005.0,87004.0,0.00017235]
[1764086377623,1.0286501,87005.0,87004.0,0.00017235]
[1764086378930,0.7586501,87005.0,87004.0,0.00017235]
[1764086379318,1.0086501,87005.0,87004.0,0.00017235]
[1764086381015,0.7086501,87005.0,87004.0,0.00017235]
[1764086381219,1.0486501,87005.0,87004.0,0.00017235]
[1764086382534,0.6286501,87005.0,87004.0,0.18623235]
[1764086382830,0.9686501,87005.0,87004.0,0.00017235]
[1764086383625,0.9686501,87005.0,86995.0,0.3608]
[1764086383626,0.1873206,87001.0,87000.0,0.04091323]
[1764086383820,1.0673206,87001.0,87000.0,0.04091323]
[1764086384018,0.17582,86999.0,86998.0,0.04091323]
[1764086384230,1.38662,86999.0,86998.0,0.04091323]
[1764086384429,1.10662,86999.0,86998.0,0.13265323]
[1764086384725,1.10662,86999.0,86998.0,0.04091323]
[1764086384924,1.37662,86999.0,86998.0,0.04091323]
[1764086385122,1.12662,86999.0,86998.0,0.04091323]
[1764086385423,1.36662,86999.0,86998.0,0.04091323]
[1764086385721,1.3781209,86999.0,86998.0,0.13265323]
[1764086385928,1.3781209,86999.0,86998.0,0.09174]
[1764086386121,0.17582,86993.0,86992.0,0.31546314]
[1764086386331,0.54582,86993.0,86992.0,0.2539718]
[1764086386830,0.45817,86993.0,86992.0,0.2539718]
[1764086387019,0.37,86993.0,86992.0,0.2539718]
[1764086387219,0.37,86993.0,86992.0,0.6147718]
[1764086387429,0.37,86993.0,86992.0,0.6157718]
[1764086388023,0.37,86993.0,86992.0,0.6167718]
[1764086388630,0.36097235,87007.0,87006.0,0.1975599]
[1764086388832,0.80097235,87007.0,87006.0,0.1975599]
[1764086389034,0.88914235,87007.0,87006.0,0.1975599]
[1764086389329,0.37017235,87007.0,87006.0,0.1410598]
[1764086389534,0.00017235,87007.0,87006.0,0.20245921]
[1764086390125,0.00017235,87007.0,87006.0,0.1410598]
[1764086391728,0.00017235,87007.0,87006.0,0.1420598]
[1764086392626,0.00017235,87007.0,87006.0,0.1430598]
[1764086393925,0.00017235,87007.0,87006.0,0.1420598]
[1764086394125,0.00017235,87007.0,87006.0,0.1430598]
[1764086395341,0.00017235,87007.0,87006.0,0.22486683]
[1764086396830,2.35e-06,87007.0,87006.0,0.22486683]
[1764086397036,2.35e-06,87007.0,87006.0,0.1430598]
[1764086397233,2.35e-06,87007.0,87006.0,0.5430598]
[1764086397534,2.35e-06,87007.0,87006.0,0.55438599]
[1764086398320,0.3608,87055.0,87049.0,0.09174]
[1764086398321,0.53662,87050.0,87049.0,0.09174]
[1764086398531,1.33662,87050.0,87040.0,0.23129]
[1764086398738,0.1873153,87041.0,87040.0,0.41735]
[1764086398926,0.6273153,87041.0,87040.0,0.36782]
[1764086399234,0.61582,87041.0,87040.0,0.40869579]
[1764086399534,0.61582,87041.0,87040.0,0.36782]
[1764086400139,0.61582,87041.0,87040.0,0.42423]
[1764086400538,0.61682,87041.0,87040.0,0.36782]
[1764086400732,0.61682,87041.0,87040.0,0.33480022]
[1764086400937,0.17582,87033.0,87032.0,0.00017235]
[1764086401237,0.02104,87032.0,87031.0,3.63e-06]
[1764086401529,0.02104,87016.0,87015.0,0.45254]
[1764086401739,0.46104,87016.0,87015.0,0.18606]
[1764086402426,0.46104,87016.0,87015.0,0.5583587]
[1764086402621,0.001,87032.0,87015.0,0.5583587]
[1764086402826,0.001,87032.0,87031.0,0.18606]
[1764086402827,0.86104,87032.0,87031.0,0.18606]
[1764086403033,0.4,87032.0,87031.0,0.1975566]
[1764086403231,0.001,87041.0,87040.0,0.1975554]
[1764086403537,0.02104,87058.0,87057.0,0.24247]
[1764086403837,0.28,87058.0,87057.0,0.24247]
[1764086404031,0.02104,87049.0,87048.0,0.14815]
[1764086404335,0.3608,87061.0,87048.0,0.05641]
[1764086405233,0.39286,87061.0,87060.0,0.17728]
[1764086405427,0.03206,87058.0,87057.0,0.05397]
[1764086405635,0.03206,87049.0,87048.0,0.2451844]
[1764086405834,0.03206,87049.0,87048.0,0.23369]
[1764086407428,0.03206,87049.0,87048.0,0.2451844]
[1764086407626,0.01603,87049.0,87048.0,0.24675945]
[1764086407826,0.3608,87061.0,87060.0,0.17728]
[1764086408026,0.03223235,87063.0,87062.0,0.17728]
[1764086408231,0.00017235,87063.0,87062.0,0.53808]
[1764086408426,0.00017235,87063.0,87062.0,0.17728]
[1764086408628,0.03223235,87063.0,87062.0,0.00157505]
[1764086411134,0.03323235,87063.0,87062.0,0.00157505]
[1764086412534,0.05414,87049.0,87048.0,0.11811]
[1764086412944,0.05414,87049.0,87048.0,0.0617]
[1764086413244,0.41494,87049.0,87048.0,0.0617]
[1764086413637,0.41494,87049.0,87048.0,0.15272]
[1764086413838,0.41494,87049.0,87048.0,0.0617]
[1764086415041,0.0114966,87031.0,87030.0,0.05641]
[1764086415641,0.0114979,87021.0,87020.0,0.05397]
[1764086415844,0.3608,87034.0,87020.0,0.05397]
[1764086415845,0.0114978,87022.0,87020.0,0.14499]
[1764086416341,0.3608,87023.0,87022.0,0.18336]
[1764086416541,0.00017235,87030.0,87029.0,0.18336]
[1764086419740,0.00017235,87030.0,87020.0,0.23733]
[1764086420048,0.00117235,87030.0,87029.0,0.18336]
[1764086420557,0.00017235,87030.0,87029.0,0.18336]
[1764086420739,0.2003,87064.0,87027.0,0.0114971]
[1764086420740,0.0114954,87040.0,87035.0,0.18336]
[1764086421056,0.0114954,87040.0,87039.0,0.18336]
[1764086421650,0.02328565,87040.0,87031.0,0.00017235]
[1764086421850,0.0114965,87032.0,87031.0,0.18353235]
[1764086422149,0.0114962,87035.0,87031.0,0.18353235]
[1764086422545,0.0114961,87035.0,87034.0,0.18336]
[1764086423246,0.3608,87041.0,87031.0,0.00017235]
[1764086423247,0.011496,87036.0,87035.0,0.18336]
[1764086423446,0.3608,87041.0,87040.0,0.23691]
[1764086423654,0.00017235,87048.0,87047.0,0.18336]
[1764086424751,0.00117235,87048.0,87047.0,0.18336]
[1764086425138,0.0114965,87032.0,87031.0,0.00017235]
[1764086426544,0.0114965,87032.0,87031.0,0.09119235]
[1764086426745,0.3722962,87034.0,87033.0,0.18336]
[1764086427045,0.3608,87034.0,87033.0,0.18336]
[1764086428244,0.3618,87034.0,87033.0,0.18336]
[1764086428950,0.001,87034.0,87033.0,0.1948564]
[1764086429249,0.3608,87052.0,87033.0,0.1948564]
[1764086429250,0.0114942,87050.0,87047.0,0.18336]
[1764086429552,0.0114941,87050.0,87047.0,0.18336]
[1764086429944,0.0114938,87053.0,87047.0,0.18336]
[1764086430145,0.011494,87051.0,87047.0,0.18336]
[1764086430346,0.00117235,87048.0,87047.0,0.18336]
[1764086430758,0.00217235,87048.0,87047.0,0.18336]
[1764086431052,0.3608,87086.0,87085.0,0.18336]
[1764086431252,0.38408385,87086.0,87085.0,0.18336]
[1764086431448,0.0114899,87083.0,87080.0,0.14457]
[1764086431648,0.0114899,87083.0,87080.0,0.05355]
[1764086432250,0.0114907,87076.0,87075.0,0.45182]
[1764086432658,0.0114907,87076.0,87073.0,0.00017225]
[1764086432957,0.3608,87077.0,87073.0,0.00017225]
[1764086433157,0.3608,87077.0,87076.0,0.18336]
[1764086433158,0.3722906,87077.0,87076.0,0.18336]
[1764086434254,0.0114909,87074.0,87073.0,0.18353225]
[1764086435355,0.0114909,87074.0,87073.0,0.00017225]
[1764086436153,0.03474581,87074.0,87073.0,0.00017225]
[1764086436952,0.03674581,87074.0,87073.0,0.00017225]
[1764086437348,0.0114927,87061.0,87060.0,0.23691]
[1764086437561,0.0114927,87061.0,87060.0,0.05355]
[1764086439063,0.0124927,87061.0,87060.0,0.05355]
[1764086439259,0.0124927,87061.0,87060.0,0.14457]
[1764086439661,0.0124927,87061.0,87060.0,0.23691]
[1764086440164,0.0114927,87061.0,87060.0,0.23691]
[1764086440374,0.0124927,87061.0,87060.0,0.23691]
[1764086440665,0.0114936,87054.0,87053.0,0.18336]
[1764086440854,0.0114936,87054.0,87053.0,0.09102]
[1764086441258,0.0114936,87054.0,87053.0,0.18336]
[1764086442150,0.0661536,87054.0,87053.0,0.12166]
[1764086442355,0.0671536,87054.0,87053.0,0.12166]
[1764086442760,0.0124936,87054.0,87053.0,0.12166]
[1764086443256,0.001,87054.0,87053.0,0.12166]
[1764086443453,0.3996224,87063.0,87062.0,0.17785]
[1764086443663,0.4269524,87063.0,87062.0,0.17785]
[1764086444455,0.3996224,87063.0,87062.0,0.17785]
[1764086444656,0.3608,87063.0,87062.0,0.17785]
[1764086444858,0.00017225,87069.0,87068.0,0.17785]
[1764086446258,0.00217225,87069.0,87068.0,0.17785]
[1764086449673,0.00217225,87069.0,87068.0,0.53865]
[1764086449674,2.25e-06,87069.0,87068.0,0.53865]
[1764086451868,0.0114913,87072.0,87071.0,0.17785]
[1764086452273,0.02967225,87077.0,87076.0,0.17785]
[1764086452474,0.04116275,87077.0,87076.0,0.17785]
[1764086453173,0.07066275,87077.0,87076.0,0.17785]
[1764086454171,0.0704913,87071.0,87070.0,0.14764]
[1764086454674,0.0114924,87063.0,87062.0,0.23465]
[1764086458376,0.0114919,87067.0,87066.0,0.17785]
[1764086458680,0.3608,87068.0,87067.0,0.1893419]
[1764086459077,0.0114907,87076.0,87075.0,0.05827]
[1764086459280,0.03482885,87076.0,87075.0,0.23612]
[1764086460378,0.02333815,87076.0,87075.0,0.23612]
[1764086460574,0.00017225,87077.0,87076.0,0.1929207]
[1764086460879,0.00017225,87077.0,87076.0,0.18143]
[1764086461079,0.02352106,87077.0,87076.0,0.18143]
[1764086461267,0.06110106,87077.0,87076.0,0.18143]
[1764086461682,0.0490719,87067.0,87066.0,0.23947]
[1764086461880,0.07242071,87067.0,87066.0,0.23947]
[1764086462184,0.00017225,87077.0,87069.0,0.1812]
[1764086462487,0.00017225,87077.0,87076.0,0.1812]
[1764086462680,2.25e-06,87077.0,87076.0,0.1812]
[1764086462874,2.25e-06,87077.0,87073.0,0.3608]
[1764086462875,0.0114894,87086.0,87085.0,0.1812]
[1764086464984,0.0124894,87086.0,87085.0,0.1812]
[1764086465383,0.0124894,87086.0,87080.0,0.05132]
[1764086465577,0.37229,87081.0,87080.0,0.14046]
[1764086465883,0.01149,87081.0,87080.0,0.23252]
[1764086466779,0.0134894,87086.0,87085.0,0.08914]
[1764086466984,0.0124894,87086.0,87085.0,0.1812]
[1764086467186,0.01149,87081.0,87080.0,0.23252]
[1764086468385,0.01149,87081.0,87080.0,0.05132]
[1764086468585,0.0114904,87078.0,87077.0,0.00017225]
[1764086468786,0.3722904,87078.0,87077.0,0.00017225]
[1764086470397,0.3732904,87078.0,87077.0,0.18137225]
[1764086470685,0.3732904,87078.0,87066.0,0.14741]
[1764086470686,0.0114919,87067.0,87066.0,0.14741]
[1764086471275,0.0114919,87067.0,87066.0,0.23947]
[1764086471785,0.0114919,87067.0,87066.0,0.05827]
[1764086471980,0.0114924,87063.0,87060.0,0.05827]
[1764086472179,0.0114924,87063.0,87058.0,0.00017225]
[1764086472575,0.3722919,87067.0,87066.0,0.17526]
[1764086472885,0.0114894,87086.0,87074.0,0.17526]
[1764086472886,0.01166305,87075.0,87074.0,0.17526]
[1764086474086,0.03492222,87075.0,87074.0,0.17526]
[1764086474288,0.03592222,87075.0,87074.0,0.17526]
[1764086474481,0.02443142,87075.0,87074.0,0.17526]
[1764086475084,0.02443142,87075.0,87074.0,0.08489]
[1764086475382,0.0114913,87071.0,87070.0,0.22987]
[1764086475688,0.38405917,87071.0,87070.0,0.22987]
[1764086476186,0.02325917,87071.0,87070.0,0.22987]
[1764086476684,0.02425917,87071.0,87070.0,0.22987]
[1764086477189,0.02325917,87071.0,87070.0,0.22987]
[1764086477382,0.00017225,87075.0,87074.0,0.1867509]
[1764086477582,0.00017225,87075.0,87074.0,0.5475509]
[1764086477583,0.02343166,87075.0,87074.0,0.5475509]
[1764086477901,0.00017225,87075.0,87074.0,0.5475509]
[1764086478489,0.00017225,87075.0,87074.0,0.53606]
[1764086479382,0.3608,87104.0,87088.0,0.17526]
[1764086479585,0.372287,87104.0,87103.0,0.17526]
[1764086479784,0.415987,87104.0,87103.0,0.17526]
[1764086480089,0.0551887,87091.0,87090.0,0.22987]
[1764086480287,0.3941387,87091.0,87090.0,0.22987]
[1764086480692,0.00011213,87099.0,87090.0,0.05461]
[1764086480891,0.00011213,87099.0,87098.0,0.17526]
[1764086481392,0.05529973,87099.0,87098.0,0.17526]
[1764086481895,0.05529973,87099.0,87098.0,0.08489]
[1764086482293,0.05629973,87099.0,87098.0,0.17526]
[1764086482894,0.05729973,87099.0,87098.0,0.17526]
[1764086483296,0.05629973,87099.0,87098.0,0.17526]
[1764086483493,0.05729973,87099.0,87098.0,0.17526]
[1764086483689,0.0551887,87091.0,87090.0,0.22987]
[1764086483896,0.3722887,87091.0,87090.0,0.22987]
[1764086484090,0.4159887,87091.0,87090.0,0.22987]
[1764086484399,0.3722887,87091.0,87090.0,0.22987]
[1764086485503,0.3608,87091.0,87090.0,0.22987]
[1764086485991,0.3618,87091.0,87090.0,0.22987]
[1764086486392,0.001,87091.0,87090.0,0.22987]
[1764086487295,0.0447,87091.0,87090.0,0.1395]
[1764086487491,0.0437,87083.0,87082.0,0.17543225]
[1764086487796,0.38839609,87083.0,87082.0,0.26721696]
[1764086488194,0.0114894,87086.0,87085.0,0.17526]
[1764086488590,0.3722894,87086.0,87085.0,0.17526]
[1764086489797,0.3732894,87086.0,87085.0,0.17526]
[1764086490502,0.3732894,87086.0,87082.0,0.00017225]
[1764086490503,0.0114897,87083.0,87082.0,0.00017225]
[1764086491002,0.0114897,87083.0,87060.0,0.05461]
[1764086491003,0.0114913,87071.0,87070.0,0.22987]
[1764086491297,0.3722913,87071.0,87070.0,0.22987]
[1764086491495,0.0114924,87063.0,87062.0,0.23206]
[1764086491697,0.3722924,87063.0,87062.0,0.23206]
[1764086491897,0.39539887,87063.0,87062.0,0.23206]
[1764086492295,0.38390647,87063.0,87062.0,0.23206]
[1764086493300,0.001,87063.0,87062.0,0.23206]
[1764086493698,0.002,87063.0,87062.0,0.23206]
[1764086494894,0.02509698,87063.0,87062.0,0.23206]
[1764086495294,0.00017225,87071.0,87070.0,0.22987]
[1764086495601,0.21697225,87073.0,87072.0,0.17526]
[1764086496904,0.30689225,87073.0,87072.0,0.17526]
[1764086497301,0.011491,87074.0,87073.0,0.17526]
[1764086497598,0.3608,87080.0,87079.0,0.17526]
[1764086497797,0.1014113,87071.0,87070.0,0.22987]
[1764086498702,0.0114913,87071.0,87070.0,0.22987]
[1764086499096,0.5481201,87080.0,87079.0,0.17526]
[1764086499295,0.57121197,87080.0,87079.0,0.17526]
[1764086500299,0.38389187,87080.0,87079.0,0.17526]
[1764086500491,0.02409187,87080.0,87079.0,0.17526]
[1764086500694,0.001,87080.0,87079.0,0.17526]
[1764086500997,2.13e-06,87081.0,87080.0,0.1867501]
[1764086502498,2.13e-06,87081.0,87080.0,0.17526]
[1764086502702,0.08992213,87081.0,87080.0,0.17526]
[1764086503007,0.17848213,87081.0,87080.0,0.17526]
[1764086503306,2.13e-06,87081.0,87077.0,0.3608]
[1764086503601,2.13e-06,87081.0,87078.0,0.0114904]
[1764086504401,2.13e-06,87081.0,87077.0,0.3608]
[1764086504607,0.01149223,87081.0,87080.0,0.18613]
[1764086505308,2.13e-06,87081.0,87078.0,0.0114904]
[1764086505512,2.13e-06,87081.0,87077.0,0.3608]
[1764086505809,2.13e-06,87081.0,87078.0,0.0114904]
[1764086506611,2.13e-06,87081.0,87077.0,0.3608]
[1764086506806,2.13e-06,87081.0,87077.0,0.3722905]
[1764086507202,2.13e-06,87081.0,87077.0,0.3608]
[1764086507408,0.0114901,87080.0,87079.0,0.18613]
[1764086507609,2.13e-06,87081.0,87079.0,0.0114903]
[1764086508928,0.0114883,87094.0,87093.0,0.24338]
[1764086509219,0.03468151,87094.0,87093.0,0.24338]
[1764086509417,0.02319321,87094.0,87093.0,0.60418]
[1764086509809,0.53909,87119.0,87118.0,0.18613]
[1764086510008,0.3608,87119.0,87118.0,0.18613]
[1764086510220,0.5505732,87133.0,87132.0,0.18613]
[1764086510409,0.1897732,87133.0,87132.0,0.18613]
[1764086510609,0.0114846,87122.0,87120.0,0.41805]
[1764086510805,0.17829,87121.0,87120.0,0.60418]
[1764086512811,0.17829,87121.0,87111.0,0.05725]
[1764086513010,0.17829,87111.0,87100.0,0.3608]
[1764086513418,0.3608,87115.0,87093.0,0.3608]
[1764086513717,0.1897783,87094.0,87093.0,0.18613]
[1764086514418,0.5505783,87094.0,87093.0,0.18613]
[1764086514815,0.1897794,87086.0,87085.0,0.18630215]
[1764086515017,0.011489,87089.0,87088.0,0.18613]
[1764086515410,0.0114886,87092.0,87091.0,0.18613]
[1764086515815,0.0114885,87093.0,87092.0,0.18613]
[1764086516012,0.011488,87097.0,87093.0,0.18613]
[1764086516216,0.3722875,87101.0,87100.0,0.24338]
[1764086518428,0.5505775,87101.0,87100.0,0.24338]
[1764086518721,0.3608,87101.0,87100.0,0.24338]
[1764086519025,0.00017191,87102.0,87100.0,0.24338]
[1764086519026,0.00017191,87102.0,87101.0,0.18613]
[1764086519223,0.49404901,87111.0,87110.0,0.18613]
[1764086519630,0.50553511,87111.0,87110.0,0.18613]
[1764086520328,0.50553511,87111.0,87110.0,0.23808]
[1764086520517,0.31575901,87111.0,87110.0,0.23808]
[1764086520922,0.31775901,87111.0,87110.0,0.23808]
[1764086521324,0.002,87111.0,87110.0,0.23808]
[1764086521531,0.0114837,87129.0,87118.0,0.17011]
[1764086521730,0.0114842,87126.0,87118.0,0.17011]
[1764086522030,0.3608,87130.0,87129.0,0.17011]
[1764086522031,0.4536636,87130.0,87129.0,0.17011]
[1764086522231,0.0114848,87121.0,87120.0,0.22206]
[1764086522425,0.11589809,87121.0,87120.0,0.22206]
[1764086522622,0.20199809,87121.0,87120.0,0.22206]
[1764086523126,0.16748,87111.0,87110.0,0.00017215]
[1764086523335,0.20200221,87111.0,87110.0,0.00017215]
[1764086524134,0.20200221,87111.0,87081.0,0.53091]
[1764086524135,0.16748,87082.0,87081.0,0.53091]
[1764086524641,0.0114897,87084.0,87083.0,0.17011]
[1764086524930,0.1789697,87084.0,87083.0,0.17011]
[1764086525431,0.00017225,87092.0,87091.0,0.17011]
[1764086525625,0.02323337,87092.0,87091.0,0.17011]
[1764086526137,0.16748,87082.0,87081.0,0.001]
[1764086526431,0.02306262,87082.0,87081.0,0.17211]
[1764086526829,0.02306262,87082.0,87081.0,0.17111]
[1764086527033,0.1789692,87088.0,87087.0,0.17011]
[1764086527229,0.20203217,87088.0,87087.0,0.17011]
[1764086527529,0.02306297,87088.0,87087.0,0.22206]
[1764086527832,0.0114888,87090.0,87089.0,0.17011]
[1764086528029,0.03455285,87090.0,87089.0,0.17011]
[1764086528837,0.02306405,87090.0,87089.0,0.17011]
[1764086529033,0.36097225,87092.0,87091.0,0.17011]
[1764086529238,0.02323932,87092.0,87091.0,0.17011]
[1764086529433,0.3608,87109.0,87108.0,0.17011]